bitfinex-derivatives/quotes_SOLF0:USTF0_20220109
["timestamp","ask_amount","ask_price","bid_price","bid_amount"]
[1641758793466,63.9491,145.3,145.23,27.66479]
[1641758793666,63.9491,145.3,145.24,0.89312321]
[1641758793866,6.60671516,145.31,145.24,0.89312321]
[1641758795170,5.50646058,145.29,145.24,0.89312321]
[1641758795770,9.50646058,145.29,145.23,0.89312321]
[1641758795970,5.50646058,145.29,145.23,0.89312321]
[1641758796370,5.50646058,145.29,145.22,0.89312321]
[1641758796770,5.50646058,145.29,145.21,0.89312321]
[1641758797172,5.50646058,145.29,145.21,28.55791321]
[1641758797370,5.50646058,145.29,145.21,43.0906454]
[1641758797571,5.50646058,145.29,145.22,0.89312321]
[1641758798273,9.50646058,145.29,145.22,0.89312321]
[1641758798673,5.50708619,145.27,145.22,0.89312321]
[1641758799273,5.50587203,145.3,145.22,0.89312321]
[1641758803082,9.50587203,145.3,145.22,0.89312321]
[1641758803382,33.17066203,145.3,145.22,0.89312321]
[1641758804181,5.50587203,145.3,145.22,0.89312321]
[1641758806084,5.50669276,145.28,145.22,0.89312321]
[1641758809090,11.01358204,145.28,145.22,0.89312321]
[1641758810294,11.01358204,145.28,145.22,25.25317534]
[1641758810893,11.01358204,145.28,145.22,15.4258554]
[1641758811095,11.01358204,145.28,145.23,0.89312321]
[1641758811494,11.01358204,145.28,145.22,0.89312321]
[1641758812098,11.01358204,145.28,145.23,14.53273219]
[1641758812698,11.01358204,145.28,145.24,0.89312321]
[1641758813299,11.01358204,145.28,145.24,28.55791321]
[1641758813500,11.01358204,145.28,145.24,27.66479]
[1641758813899,5.50571262,145.31,145.25,0.89312321]
[1641758814299,3.9086753,145.3,145.25,0.89312321]
[1641758814501,3.9086753,145.3,145.25,25.25740356]
[1641758814698,3.9086753,145.31,145.25,25.25740356]
[1641758815300,3.9086753,145.32,145.27,27.66479]
[1641758815702,3.9086753,145.32,145.28,0.89312321]
[1641758815901,5.50591357,145.3,145.28,0.89312321]
[1641758816103,3.9086753,145.32,145.28,0.89312321]
[1641758816502,3.9086753,145.33,145.28,0.89312321]
[1641758816702,5.50539879,145.32,145.28,0.89312321]
[1641758817803,3.9086753,145.31,145.28,0.89312321]
[1641758823411,5.50597937,145.3,145.28,0.89312321]
[1641758823808,3.9086753,145.29,145.24,42.19752219]
[1641758824209,3.9086753,145.29,145.25,1.71230474]
[1641758826710,3.9086753,145.29,145.26,2.46625213]
[1641758827210,3.9086753,145.29,145.27,1.71230474]
[1641758829014,5.50662932,145.28,145.25,1.71230474]
[1641758829516,3.9086753,145.27,145.25,1.71230474]
[1641758830518,3.9086753,145.27,145.26,2.46651621]
[1641758831221,3.9086753,145.27,145.26,4.17882095]
[1641758833022,9.41603463,145.27,145.26,4.17882095]
[1641758833427,1.32889983,145.26,145.24,27.66479]
[1641758833726,9.41603463,145.27,145.24,27.66479]
[1641758834227,5.50735933,145.27,145.24,27.66479]
[1641758834425,5.50735933,145.27,145.22,42.19752219]
[1641758834426,4.0,145.25,145.22,14.53273219]
[1641758834626,4.0,145.24,145.18,38.54110411]
[1641758835028,3.91042646,145.23,145.19,1.35440152]
[1641758835227,3.91042646,145.23,145.19,11.18271612]
[1641758835527,6.60895609,145.26,145.19,11.18271612]
[1641758835528,3.91042646,145.25,145.19,11.18271612]
[1641758836028,3.91042646,145.25,145.2,1.35440152]
[1641758836829,3.91042646,145.25,145.18,1.35440152]
[1641758840331,3.91042646,145.25,145.18,8.23718767]
[1641758840932,3.91042646,145.25,145.19,1.35440152]
[1641758841132,3.91042646,145.25,145.2,4.0]
[1641758841533,3.91042646,145.25,145.19,34.74019152]
[1641758841932,3.91042646,145.25,145.2,9.8283146]
[1641758842132,3.91042646,145.25,145.2,11.18271612]
[1641758842533,3.91042646,145.26,145.21,1.35440152]
[1641758843534,31.57521646,145.26,145.21,1.35440152]
[1641758843935,3.91042646,145.25,145.21,1.35440152]
[1641758844737,3.91042646,145.25,145.2,1.35440152]
[1641758845237,3.91042646,145.25,145.2,11.17168947]
[1641758845437,5.50820148,145.24,145.2,11.17168947]
[1641758845737,9.50820148,145.24,145.21,1.35440152]
[1641758845937,4.15487921,145.21,145.2,9.81728795]
[1641758846136,3.91042646,145.23,145.15,38.54110411]
[1641758846338,4.0,145.21,145.15,38.54110411]
[1641758847138,3.91042646,145.2,145.16,1.07049651]
[1641758847338,7.91042646,145.2,145.16,1.07049651]
[1641758847537,27.66479,145.17,145.14,1.07049651]
[1641758847939,3.91042646,145.16,145.13,1.07049651]
[1641758848839,3.91042646,145.16,145.11,1.07049651]
[1641758849242,27.66479,145.17,145.11,1.07049651]
[1641758849842,3.91180354,145.16,145.11,1.07049651]
[1641758851542,3.91180354,145.16,145.11,32.73528651]
[1641758851745,3.91180354,145.16,145.11,28.73528651]
[1641758851944,3.91180354,145.2,145.12,1.07049651]
[1641758852143,3.91180354,145.2,145.12,2.79249651]
[1641758853046,3.91180354,145.2,145.13,1.07049651]
[1641758853444,3.91180354,145.2,145.14,27.66479]
[1641758853844,3.91180354,145.2,145.15,1.07049651]
[1641758854845,9.4218107,145.2,145.15,1.07049651]
[1641758855246,3.91180354,145.19,145.15,1.07049651]
[1641758855447,9.42190563,145.19,145.15,1.07049651]
[1641758856047,4.0,145.18,145.15,1.07049651]
[1641758856247,5.51089243,145.17,145.12,1.07049651]
[1641758856647,3.91180354,145.16,145.11,1.07049651]
[1641758857050,3.91180354,145.16,145.09,1.07049651]
[1641758857549,31.57659354,145.16,145.08,6.79249651]
[1641758857748,3.91180354,145.16,145.1,4.0]
[1641758857949,5.51000716,145.2,145.1,4.0]
[1641758858148,27.66479,145.21,145.14,4.0]
[1641758858348,27.66479,145.21,145.13,1.722]
[1641758858654,3.9111302,145.2,145.15,1.07049651]
[1641758858948,3.9111302,145.2,145.14,1.07049651]
[1641758859350,3.9111302,145.2,145.16,4.0]
[1641758859553,3.02e-05,145.2,145.17,4.0]
[1641758859752,27.66479,145.25,145.17,4.0]
[1641758859951,27.66479,145.25,145.17,5.721]
[1641758860150,27.66479,145.25,145.17,1.721]
[1641758860852,3.91048583,145.24,145.18,1.10877653]
[1641758861649,3.91048583,145.24,145.17,1.10877653]
[1641758862050,7.91048583,145.24,145.17,1.10877653]
[1641758862650,3.91048583,145.23,145.17,1.10877653]
[1641758863452,27.66479,145.22,145.17,1.10877653]
[1641758863657,3.91048583,145.23,145.17,1.10877653]
[1641758863855,3.91048583,145.21,145.17,1.10877653]
[1641758864357,3.91048583,145.23,145.17,5.10877653]
[1641758864555,3.91048583,145.23,145.2,4.0]
[1641758864759,3.91048583,145.24,145.2,4.0]
[1641758864955,3.91048583,145.24,145.19,4.0]
[1641758865155,3.91048583,145.24,145.21,1.10877653]
[1641758865556,31.57527583,145.28,145.2,15.69235829]
[1641758865959,3.91048583,145.27,145.21,1.10877653]
[1641758866656,3.91048583,145.27,145.23,4.0]
[1641758867056,3.91048583,145.27,145.22,5.721]
[1641758867357,3.91048583,145.27,145.22,1.721]
[1641758867757,3.91048583,145.29,145.23,1.10877653]
[1641758868156,3.91048583,145.26,145.23,1.10877653]
[1641758868557,74.31278583,145.29,145.22,1.10877653]
[1641758869058,3.91048583,145.28,145.22,1.10877653]
[1641758871058,9.41722526,145.28,145.22,1.10877653]
[1641758871260,4.0,145.25,145.22,1.10877653]
[1641758871458,5.50789032,145.25,145.22,1.10877653]
[1641758871658,31.57527583,145.24,145.21,7.653e-05]
[1641758871859,4.0,145.22,145.17,38.54110411]
[1641758872158,5.50940666,145.21,145.17,14.60470621]
[1641758872359,34.27464426,145.24,145.17,14.60470621]
[1641758872860,34.27464426,145.24,145.14,42.54110411]
[1641758873059,3.91099849,145.23,145.18,1.65868077]
[1641758873460,3.91099849,145.23,145.14,12.54359936]
[1641758873660,3.91099849,145.23,145.15,31.66479]
[1641758873860,3.91099849,145.23,145.17,4.0]
[1641758874260,3.91099849,145.23,145.19,2.46367488]
[1641758874663,3.91099849,145.23,145.2,1.65868077]
[1641758875759,3.91099849,145.23,145.21,2.46367488]
[1641758876361,7.91099849,145.23,145.16,9.81583007]
[1641758876662,4.0,145.22,145.12,45.4267338]
[1641758877062,13.42049069,145.21,145.13,1.67034278]
[1641758877462,4.0,145.2,145.13,1.67034278]
[1641758877663,27.66479,145.19,145.13,1.67034278]
[1641758878062,27.66479,145.19,145.11,13.81263401]
[1641758878063,31.57578849,145.19,145.12,5.67034278]
[1641758878264,3.91099849,145.19,145.12,3.39234278]
[1641758878462,65.6238,145.23,145.13,1.67034278]
[1641758878663,65.6238,145.23,145.15,4.0]
[1641758878865,3.91107463,145.22,145.15,4.0]
[1641758879264,3.91107463,145.22,145.16,1.67034278]
[1641758879766,3.91107463,145.23,145.16,1.67034278]
[1641758880866,9.50937195,145.21,145.16,1.67034278]
[1641758881167,5.51049999,145.18,145.16,9.81263401]
[1641758881666,31.57586463,145.17,145.16,9.81263401]
[1641758881866,37.08671232,145.17,145.11,9.81263401]
[1641758882666,37.08671232,145.17,145.08,45.4286308]
[1641758882867,37.08671232,145.17,145.08,38.54110411]
[1641758883066,3.91107463,145.16,145.08,38.54110411]
[1641758883566,3.91107463,145.16,145.08,9.81263401]
[1641758884166,3.91107463,145.16,145.1,4.0]
[1641758884765,27.66479,145.18,145.1,10.88657806]
[1641758884965,4.0,145.17,145.09,1.722]
[1641758885167,13.42276919,145.17,145.08,9.81263401]
[1641758885569,3.91194501,145.16,145.08,9.81263401]
[1641758885769,27.66479,145.1,145.08,9.81263401]
[1641758886068,27.66479,145.1,145.09,38.54110411]
[1641758887270,27.66479,145.1,145.03,38.54110411]
[1641758888172,27.66479,145.1,145.02,63.03763787]
[1641758888370,6.89607613,145.07,145.02,63.03763787]
[1641758888572,6.89607613,145.07,145.02,53.22500386]
[1641758888772,6.89607613,145.07,144.98,57.90850485]
[1641758888972,5.51626045,145.03,144.98,57.90850485]
[1641758889172,5.51626045,145.03,144.94,38.85779912]
[1641758889173,4.0,145.01,144.94,38.85779912]
[1641758889376,5.51626045,145.03,144.94,38.85779912]
[1641758889776,27.66479,145.01,144.94,38.85779912]
[1641758890376,27.66479,145.01,144.92,66.52258912]
[1641758891277,6.61788046,145.07,144.92,88.24658912]
[1641758891477,6.61788046,145.07,144.97,10.89274883]
[1641758891677,6.61788046,145.07,144.98,1.723]
[1641758891879,3.91455008,145.06,144.99,27.66479]
[1641758892277,6.61788046,145.07,144.99,27.66479]
[1641758892978,3.91453624,145.06,144.99,27.66479]
[1641758893880,3.91453624,145.06,144.99,31.66479]
[1641758894080,27.66479,145.09,144.99,31.66479]
[1641758894281,27.66479,145.09,145.0,4.0]
[1641758894480,27.66479,145.09,144.99,27.66479]
[1641758894680,27.66479,145.09,145.0,4.0]
[1641758894880,27.66479,145.09,145.0,69.5753]
[1641758895882,27.66479,145.09,145.02,27.66479]
[1641758896483,3.91382753,145.08,145.02,27.66479]
[1641758896983,3.91382753,145.08,145.03,1.66153904]
[1641758900589,27.66479,145.09,145.03,1.66153904]
[1641758900887,33.17897375,145.09,145.03,1.66153904]
[1641758901088,3.91382893,145.08,145.03,1.66153904]
[1641758902689,5.51418375,145.09,145.03,1.66153904]
[1641758903587,9.4283132,145.08,145.03,1.66153904]
[1641758903989,5.5144636,145.08,145.03,1.66153904]
[1641758904890,9.51530388,145.06,145.01,14.52050265]
[1641758905089,9.51530388,145.06,144.98,38.85779912]
[1641758905090,5.51530388,145.06,144.98,38.85779912]
[1641758905487,5.51630417,145.03,144.98,38.85779912]
[1641758906090,5.51650331,145.02,144.98,38.85779912]
[1641758906289,9.43202014,145.02,144.99,1.31427532]
[1641758906689,5.51650331,145.02,144.99,1.31427532]
[1641758906992,27.66479,145.04,144.99,1.31427532]
[1641758907189,5.5152649,145.06,144.97,4.0]
[1641758907388,5.5152649,145.06,144.98,6.89251129]
[1641758907589,5.5152649,145.06,144.96,1.723]
[1641758907789,3.91462228,145.05,144.99,1.31427532]
[1641758907989,3.91462228,145.05,145.0,27.66479]
[1641758908592,3.91462228,145.05,145.01,1.31427532]
[1641758909291,5.5152649,145.06,145.01,1.31427532]
[1641758909490,27.66479,145.07,145.01,1.31427532]
[1641758909891,27.66479,145.07,145.01,11.10717648]
[1641758910092,3.91486947,145.06,145.01,9.79290116]
[1641758910495,3.91486947,145.06,145.02,1.31427532]
[1641758911298,3.91486947,145.06,144.98,40.17207444]
[1641758911496,3.91486947,145.06,144.98,44.17207444]
[1641758911693,3.91486947,145.06,144.99,1.31427532]
[1641758911694,4.0,145.05,144.99,1.31427532]
[1641758912095,5.51615482,145.03,144.99,1.31427532]
[1641758912695,59.32958,145.07,144.98,1.31427532]
[1641758912897,4.0,145.06,144.98,1.31427532]
[1641758913096,5.51537953,145.05,144.98,1.31427532]
[1641758913496,11.03107418,145.05,144.98,1.31427532]
[1641758913696,3.91515392,145.04,144.97,1.31427532]
[1641758916798,3.91515392,145.04,144.98,2.45957299]
[1641758917200,3.91515392,145.04,144.99,1.31427532]
[1641758917400,4.0,145.02,144.99,1.31427532]
[1641758917599,9.5165639,145.02,144.99,1.31427532]
[1641758917799,5.5165639,145.02,144.99,1.31427532]
[1641758918000,3.91515392,145.01,144.99,1.31427532]
[1641758918399,3.91515392,145.01,145.0,2.45957299]
[1641758919002,3.91515392,145.01,145.0,3.77384831]
[1641758920309,27.66479,145.02,145.0,3.77384831]
[1641758920706,27.66479,145.02,145.01,1.31427532]
[1641758920907,27.66479,145.02,145.01,3.77384831]
[1641758921108,3.91530996,145.02,145.01,3.77384831]
[1641758921610,3.91530996,145.03,145.01,3.77384831]
[1641758922211,27.66479,145.07,145.02,1.31427532]
[1641758922612,3.91445834,145.06,145.02,1.31427532]
[1641758922815,3.91445834,145.06,145.02,3.77384831]
[1641758923613,3.91445834,145.06,145.03,1.31427532]
[1641758923815,3.91445834,145.06,145.03,3.77384831]
[1641758924415,3.91445834,145.06,145.04,1.31427532]
[1641758924814,3.91445834,145.06,145.04,3.77384831]
[1641758925213,3.91445834,145.06,145.05,1.31427532]
[1641758925514,3.91445834,145.06,145.05,3.77384831]
[1641758926615,9.42956341,145.06,145.05,3.77384831]
[1641758928418,1.74173873,145.05,145.01,9.79290116]
[1641758928818,9.42956341,145.06,145.01,9.79290116]
[1641758929018,5.51510507,145.06,145.01,9.79290116]
[1641758930019,3.9148551,145.05,145.02,1.03762746]
[1641758931321,27.66479,145.11,145.02,1.03762746]
[1641758931620,27.66479,145.11,145.02,67.72932746]
[1641758931821,3.91416032,145.1,145.02,67.72932746]
[1641758932020,3.91416032,145.1,145.02,106.58712658]
[1641758932221,3.91416032,145.1,145.03,1.03762746]
[1641758933120,3.91416032,145.1,145.03,10.83052862]
[1641758933520,3.91416032,145.1,145.04,1.03762746]
[1641758934123,9.42765553,145.1,145.04,1.03762746]
[1641758934723,3.91416032,145.09,145.04,1.03762746]
[1641758935224,5.51349521,145.1,145.04,1.03762746]
[1641758935625,27.66479,145.14,145.07,14.61915396]
[1641758935825,7.93673912,145.15,145.07,14.61915396]
[1641758936027,3.91297225,145.13,145.08,1.03762746]
[1641758936225,3.91297225,145.13,145.1,27.66479]
[1641758936426,3.91297225,145.14,145.1,27.66479]
[1641758936827,3.91297225,145.14,145.1,42.28394396]
[1641758937027,3.91297225,145.17,145.11,1.03762746]
[1641758937628,3.91297225,145.19,145.11,1.03762746]
[1641758937827,3.91297225,145.16,145.11,25.44968258]
[1641758938227,3.91297225,145.16,145.13,27.66479]
[1641758938827,3.91297225,145.19,145.13,27.66479]
[1641758939226,3.91297225,145.19,145.14,1.03762746]
[1641758940329,7.91297225,145.19,145.14,1.03762746]
[1641758940528,4.0,145.18,145.14,1.03762746]
[1641758940729,5.51078179,145.17,145.14,1.03762746]
[1641758940930,4.0,145.16,145.14,1e-08]
[1641758941129,5.51196582,145.14,145.11,1e-08]
[1641758941332,9.51196582,145.14,145.11,1e-08]
[1641758941528,5.51196582,145.14,145.11,1e-08]
[1641758941729,9.51196582,145.14,145.11,1e-08]
[1641758942329,27.66479,145.13,145.11,1e-08]
[1641758942631,31.57811034,145.13,145.11,1e-08]
[1641758942828,3.91332034,145.12,145.11,1e-08]
[1641758943329,3.91332034,145.12,145.06,1e-08]
[1641758944330,5.51312619,145.11,145.06,1e-08]
[1641758944731,3.91332034,145.1,145.06,1e-08]
[1641758945832,3.91332034,145.1,145.04,1e-08]
[1641758949539,3.91332034,145.1,145.04,24.39936075]
[1641758950138,3.91332034,145.1,145.05,1e-08]
[1641758950539,3.91332034,145.1,145.05,14.61915397]
[1641758950741,3.91332034,145.12,145.05,14.61915397]
[1641758951340,3.91332034,145.12,145.06,14.61915397]
[1641758951742,3.91332034,145.12,145.07,1e-08]
[1641758952342,5.51313912,145.11,145.07,1e-08]
[1641758952942,3.91332034,145.1,145.07,1e-08]
[1641758953345,3.91332034,145.1,145.06,1e-08]
[1641758954744,3.91332034,145.1,145.05,1e-08]
[1641758955744,3.91332034,145.1,145.05,14.61915397]
[1641758956546,5.51418782,145.09,145.06,1e-08]
[1641758957147,5.51487337,145.07,145.06,1e-08]
[1641758957347,5.51487337,145.07,145.05,1e-08]
[1641758957750,3.91332034,145.06,145.02,1e-08]
[1641758958149,5.51401147,145.09,145.01,1e-08]
[1641758958549,3.91332034,145.08,145.01,1e-08]
[1641758958751,3.91332034,145.08,145.03,14.61915396]
[1641758959551,3.91332034,145.08,145.01,14.61915397]
[1641758959751,3.91332034,145.08,145.04,1e-08]
[1641758960151,3.91332034,145.08,145.02,1e-08]
[1641758961952,3.91332034,145.08,145.02,14.61915397]
[1641758962352,3.91332034,145.08,145.03,1e-08]
[1641758962653,5.51477399,145.07,145.03,1e-08]
[1641758963153,3.91332034,145.06,145.02,1e-08]
[1641758963553,5.51550432,145.05,145.02,1e-08]
[1641758964154,3.91332034,145.04,145.02,1e-08]
[1641758964555,31.57811034,145.04,145.02,1e-08]
[1641758964753,31.57811034,145.04,144.99,1e-08]
[1641758965154,3.91332034,145.03,144.99,1e-08]
[1641758966857,5.51562276,145.05,144.99,1e-08]
[1641758967556,5.51562276,145.05,144.99,4.00000001]
[1641758967756,34.28182493,145.09,144.99,4.00000001]
[1641758967956,34.28182493,145.09,145.01,14.61915396]
[1641758968358,34.28182493,145.09,145.01,18.61915396]
[1641758968557,3.91444299,145.08,145.01,18.61915396]
[1641758968758,3.91444299,145.08,145.02,14.61915396]
[1641758968960,3.91444299,145.08,145.02,14.61915397]
[1641758969361,3.91444299,145.08,145.03,1e-08]
[1641758969759,3.91444299,145.08,145.03,4.00000001]
[1641758969959,3.91444299,145.08,145.04,4.0]
[1641758970159,12.12603655,145.15,145.04,1.723]
[1641758970359,12.12603655,145.15,145.05,1e-08]
[1641758970659,27.66479,145.14,145.05,27.66479001]
[1641758971059,4.0,145.12,145.05,44.73953301]
[1641758971259,4.0,145.11,145.05,17.074743]
[1641758971760,4.0,145.11,145.06,1.64150295]
[1641758971961,5.51397533,145.09,145.02,17.074743]
[1641758972161,9.51397533,145.09,145.02,17.074743]
[1641758972360,5.51397533,145.09,145.02,17.074743]
[1641758972860,33.17876533,145.09,145.02,14.61915396]
[1641758973160,5.51397533,145.09,145.02,14.61915396]
[1641758973360,5.51397533,145.09,145.03,15.46121695]
[1641758973964,5.51397533,145.09,145.04,0.84206299]
[1641758974962,5.51397533,145.09,145.04,3.29765203]
[1641758975564,5.51397533,145.09,145.05,0.84206299]
[1641758975964,5.51397533,145.09,145.05,3.29765203]
[1641758976565,5.51397533,145.09,145.06,0.84206299]
[1641758976764,5.51397533,145.09,145.06,3.29765203]
[1641758976966,4.0,145.07,145.06,3.29765203]
[1641758977165,9.5148093,145.07,145.06,5.203e-05]
[1641758977367,9.5148093,145.07,145.02,14.61915396]
[1641758978467,9.5148093,145.07,144.99,14.61915396]
[1641758978669,37.1795993,145.07,144.99,14.61915396]
[1641758978868,33.1795993,145.07,145.03,1.2976263]
[1641758979070,33.1795993,145.07,145.0,1.2976263]
[1641758979569,33.1795993,145.07,145.0,15.91678026]
[1641758980071,33.1795993,145.07,145.01,1.2976263]
[1641758980571,33.1795993,145.07,145.01,15.91678026]
[1641758981372,33.1795993,145.07,145.02,1.2976263]
[1641758982172,33.1795993,145.07,145.02,15.91678026]
[1641758982372,5.5148093,145.07,145.02,15.91678026]
[1641758982571,27.66479,145.1,145.03,1.2976263]
[1641758983873,6.61579785,145.11,145.04,14.61915396]
[1641758984276,6.61579785,145.11,145.05,1.2976263]
[1641758984774,27.66479,145.09,145.06,1.2976263]
[1641758985076,27.66479,145.09,145.02,24.40754113]
[1641758985674,27.66479,145.09,145.04,14.61915396]
[1641758985675,3.91432706,145.08,145.04,14.61915396]
[1641758986074,3.91432706,145.08,145.05,1.11970702]
[1641758989078,3.91432706,145.08,145.04,1.11970702]
[1641758989379,3.91432706,145.08,145.04,15.73886098]
[1641758989880,3.91432706,145.08,145.05,1.11970702]
[1641758990182,3.91432706,145.08,145.05,15.73886098]
[1641758990881,3.91432706,145.08,145.06,1.11970702]
[1641758991082,27.66479,145.12,145.06,1.11970702]
[1641758991285,35.60172024,145.15,145.06,1.11970702]
[1641758991482,35.60172024,145.15,145.06,71.42060702]
[1641758991882,35.60172024,145.15,145.06,86.03976098]
[1641758992285,3.91371093,145.14,145.07,1.11970702]
[1641758992683,3.91371093,145.14,145.07,25.52724815]
[1641758993083,3.91371093,145.14,145.08,1.11970702]
[1641758994083,3.91371093,145.14,145.06,84.92005396]
[1641758994084,3.91371093,145.14,145.07,1.11970702]
[1641758996688,3.91371093,145.14,145.07,25.54853959]
[1641758997290,3.91371093,145.14,145.09,4.0]
[1641758997694,3.91371093,145.14,145.11,4.0]
[1641758997891,3.91371093,145.14,145.12,4.0]
[1641758998091,1.093e-05,145.14,145.12,4.0]
[1641758998292,1.093e-05,145.17,145.13,4.0]
[1641758998692,14.61915396,145.21,145.12,4.0]
[1641758998892,14.61915396,145.21,145.13,5.722]
[1641758999092,14.61915396,145.21,145.13,31.66479]
[1641758999592,3.91185844,145.2,145.14,1.94554906]
[1641758999992,3.91185844,145.22,145.14,1.94554906]
[1641759001593,7.91185844,145.22,145.14,1.94554906]
[1641759001793,9.42103064,145.22,145.14,1.94554906]
[1641759002192,3.91185844,145.21,145.14,1.94554906]
[1641759003692,4.0,145.2,145.14,1.94554906]
[1641759003893,4.0,145.19,145.14,1.94554906]
[1641759004094,5.51104141,145.17,145.14,1.94554906]
[1641759004292,5.51104141,145.17,145.12,1.94554906]
[1641759004897,3.91185844,145.16,145.12,1.94554906]
[1641759005295,27.66479,145.15,145.08,69.81674906]
[1641759005695,3.91185844,145.14,145.09,1.94554906]
[1641759010004,9.42396397,145.14,145.09,1.94554906]
[1641759010204,9.42396397,145.14,145.07,1.94554906]
[1641759010804,3.91185844,145.13,145.1,1.94554906]
[1641759011104,3.91185844,145.13,145.08,1.94554906]
[1641759011503,3.91185844,145.13,145.07,29.61033906]
[1641759012105,3.91185844,145.13,145.08,1.94554906]
[1641759012508,9.42431411,145.13,145.08,1.94554906]
[1641759012907,9.42431411,145.13,145.07,1.94554906]
[1641759013108,3.91185844,145.12,145.07,1.94554906]
[1641759013308,9.5132511,145.11,145.07,1.94554906]
[1641759013511,27.66479,145.08,145.06,1.94554906]
[1641759013810,4.0,145.07,145.06,1.94554906]
[1641759014108,3.91185844,145.07,145.06,1.94554906]
[1641759014909,3.91185844,145.07,145.03,1.94554906]
[1641759016810,3.91185844,145.07,145.01,1.94554906]
[1641759017011,3.91185844,145.07,145.01,8.83663544]
[1641759017209,3.91185844,145.07,145.01,12.83663544]
[1641759017409,3.91185844,145.07,145.03,27.66479]
[1641759017613,33.17781354,145.12,145.04,4.0]
[1641759017811,3.91395626,145.11,145.04,62.134]
[1641759018212,3.91395626,145.11,145.06,4.0]
[1641759018413,3.91395626,145.11,145.07,4.0]
[1641759018614,3.91395626,145.11,145.06,4.0]
[1641759018813,3.91395626,145.13,145.08,3.90361481]
[1641759019213,3.91395626,145.13,145.07,6.35858593]
[1641759019414,3.91395626,145.13,145.07,34.02337593]
[1641759019613,3.91395626,145.13,145.08,3.90361481]
[1641759019913,3.91395626,145.13,145.08,6.35858593]
[1641759020413,9.42631849,145.13,145.08,6.35858593]
[1641759020614,9.42631849,145.13,145.09,3.90361481]
[1641759020916,9.42631849,145.13,145.09,6.35858593]
[1641759021114,3.91395626,145.12,145.09,6.35858593]
[1641759021414,3.91395626,145.12,145.1,3.90361481]
[1641759021614,3.91395626,145.13,145.1,3.90361481]
[1641759022014,3.91395626,145.11,145.06,3.90361481]
[1641759022414,3.91395626,145.13,145.06,3.90361481]
[1641759023114,3.91395626,145.13,145.07,2.45567966]
[1641759023816,3.91395626,145.13,145.08,3.90361481]
[1641759024515,3.91395626,145.13,145.09,2.45567966]
[1641759025218,3.91395626,145.13,145.1,3.90361481]
[1641759026422,3.91395626,145.13,145.07,3.90361481]
[1641759027321,3.91395626,145.13,145.08,2.4562572]
[1641759027823,3.91395626,145.13,145.09,3.90361481]
[1641759029424,3.91395626,145.13,145.07,3.90361481]
[1641759030324,3.91395626,145.13,145.08,2.45720679]
[1641759030725,3.91395626,145.13,145.09,3.90361481]
[1641759031326,9.42654103,145.13,145.09,3.90361481]
[1641759031625,3.91395626,145.12,145.09,3.90361481]
[1641759032027,3.91395626,145.12,145.05,24.41231933]
[1641759032028,3.91395626,145.11,145.06,3.90361481]
[1641759032529,3.91395626,145.1,145.06,3.90361481]
[1641759032930,5.51258477,145.13,145.06,3.90361481]
[1641759033231,5.51258477,145.13,145.07,2.45955544]
[1641759033433,3.53275817,145.12,145.07,2.45955544]
[1641759033631,3.53275817,145.12,145.07,30.12434544]
[1641759033832,3.53275817,145.12,145.08,3.90361481]
[1641759034232,3.53275817,145.13,145.08,3.90361481]
[1641759034432,3.53275817,145.13,145.09,2.45955544]
[1641759034932,9.04516534,145.13,145.09,2.45955544]
[1641759035234,9.04516534,145.13,145.1,3.90361481]
[1641759035734,3.53275817,145.12,145.1,3.90361481]
[1641759036634,3.53275817,145.13,145.09,3.90361481]
[1641759036834,3.53275817,145.13,145.11,2.46250091]
[1641759037436,3.53275817,145.13,145.12,3.90361481]
[1641759037834,3.53275817,145.13,145.12,31.56840481]
[1641759038136,3.53275817,145.16,145.12,35.56840481]
[1641759038334,3.53275817,145.16,145.13,5.722]
[1641759038534,14.61915396,145.2,145.14,4.0]
[1641759038736,14.61915396,145.2,145.15,4.0]
[1641759038937,3.53138253,145.19,145.16,5.722]
[1641759039137,3.53138253,145.19,145.17,4.0]
[1641759039334,14.61915396,145.2,145.18,4.0]
[1641759039536,38.54110411,145.23,145.18,5.721]
[1641759039734,38.54110411,145.23,145.18,29.38579]
[1641759039937,42.27003827,145.26,145.19,3.90361481]
[1641759040335,3.53037314,145.25,145.19,3.90361481]
[1641759041036,3.53037314,145.25,145.2,2.46250091]
[1641759041636,3.53037314,145.25,145.21,3.90361481]
[1641759042839,3.53037314,145.25,145.21,9.62461481]
[1641759043039,3.53037314,145.27,145.21,5.62461481]
[1641759043239,3.53037314,145.27,145.21,3.90361481]
[1641759043440,3.53037314,145.27,145.22,3.90361481]
[1641759043939,3.53037314,145.27,145.21,3.90361481]
[1641759044844,3.53037314,145.27,145.23,4.0]
[1641759045139,27.66479,145.32,145.22,1.721]
[1641759045342,27.66479,145.32,145.29,4.0]
[1641759045741,27.66479,145.35,145.27,31.66479]